[Event "*** Titled Tuesday Blitz"]
[Site "Chess.com"]
[Date "2019.06.04"]
[Round "10"]
[White "Vamostodorecto"]
[Black "albi1999"]
[Result "1/2-1/2"]
[WhiteElo "2427"]
[BlackElo "2440"]
[TimeControl "180+2"]
[EndTime "15:22:37 PDT"]
[Termination "Game drawn - insufficient material"]

1. d4 {[%clk 0:03:01.9]} 1... d5 {[%clk 0:02:40.3]} 2. c4 {[%clk 0:03:01.5]}
2... e6 {[%clk 0:02:41.8]} 3. Nc3 {[%clk 0:03:01.5]} 3... Nf6 {[%clk 0:02:42.1]}
4. cxd5 {[%clk 0:03:02.6]} 4... Nxd5 {[%clk 0:02:44]} 5. e4 {[%clk 0:03:02.8]}
5... Nxc3 {[%clk 0:02:45.5]} 6. bxc3 {[%clk 0:03:04.7]} 6... c5 {[%clk
0:02:47.4]} 7. Rb1 {[%clk 0:03:04.2]} 7... Be7 {[%clk 0:02:48]} 8. Nf3 {[%clk
0:03:04.9]} 8... O-O {[%clk 0:02:49.4]} 9. Be2 {[%clk 0:03:05.9]} 9... b6 {[%clk
0:02:47.6]} 10. O-O {[%clk 0:03:06.1]} 10... Bb7 {[%clk 0:02:49.2]} 11. e5
{[%clk 0:03:06.1]} 11... Nc6 {[%clk 0:02:47.4]} 12. Be3 {[%clk 0:03:05.6]} 12...
cxd4 {[%clk 0:02:48]} 13. cxd4 {[%clk 0:03:06.1]} 13... Nb4 {[%clk 0:02:49.4]}
14. Nd2 {[%clk 0:02:58.7]} 14... Nxa2 {[%clk 0:02:43.7]} 15. Qc2 {[%clk
0:02:30.7]} 15... Nb4 {[%clk 0:02:38.8]} 16. Qa4 {[%clk 0:02:25.5]} 16... Nd5
{[%clk 0:02:34.2]} 17. Ba6 {[%clk 0:02:22]} 17... Nc3 {[%clk 0:02:31]} 18. Qa1
{[%clk 0:02:19]} 18... Bxa6 {[%clk 0:02:30.9]} 19. Qxc3 {[%clk 0:02:13.3]} 19...
Bxf1 {[%clk 0:02:31.7]} 20. Rxf1 {[%clk 0:02:13.3]} 20... Qd5 {[%clk 0:02:32.8]}
21. f4 {[%clk 0:02:12.2]} 21... Rfc8 {[%clk 0:02:32.9]} 22. Qd3 {[%clk
0:02:12.6]} 22... g6 {[%clk 0:02:34.1]} 23. g4 {[%clk 0:02:11.1]} 23... Bb4
{[%clk 0:02:31]} 24. Ne4 {[%clk 0:02:09.1]} 24... Be7 {[%clk 0:02:28.3]} 25. f5
{[%clk 0:02:10.1]} 25... Qc4 {[%clk 0:02:13.4]} 26. Qd1 {[%clk 0:02:03.8]} 26...
gxf5 {[%clk 0:01:55]} 27. gxf5 {[%clk 0:02:05.7]} 27... Kh8 {[%clk 0:01:56.2]}
28. f6 {[%clk 0:01:52]} 28... Rg8+ {[%clk 0:01:56.5]} 29. Ng5 {[%clk 0:01:34.7]}
29... Qc3 {[%clk 0:01:54.7]} 30. Kf2 {[%clk 0:01:11.8]} 30... Qb2+ {[%clk
0:01:30.6]} 31. Qe2 {[%clk 0:00:52.7]} 31... Qxe2+ {[%clk 0:01:29.1]} 32. Kxe2
{[%clk 0:00:54.6]} 32... Rxg5 {[%clk 0:01:28.6]} 33. Bxg5 {[%clk 0:00:56]} 33...
Bf8 {[%clk 0:01:29.8]} 34. Rc1 {[%clk 0:00:46.9]} 34... a5 {[%clk 0:01:29.1]}
35. Rc7 {[%clk 0:00:45.4]} 35... Kg8 {[%clk 0:01:29.7]} 36. Rb7 {[%clk
0:00:41.8]} 36... a4 {[%clk 0:01:27]} 37. Rxb6 {[%clk 0:00:32.5]} 37... a3
{[%clk 0:01:27.6]} 38. Rb1 {[%clk 0:00:30]} 38... Bb4 {[%clk 0:01:25.2]} 39. Bd2
{[%clk 0:00:18.3]} 39... a2 {[%clk 0:01:21.5]} 40. Rg1+ {[%clk 0:00:17]} 40...
Kh8 {[%clk 0:01:20.2]} 41. Ra1 {[%clk 0:00:12.3]} 41... Bf8 {[%clk 0:01:20.1]}
42. Bc3 {[%clk 0:00:10.5]} 42... h5 {[%clk 0:01:20.1]} 43. Kd3 {[%clk
0:00:11.4]} 43... Kh7 {[%clk 0:01:21.4]} 44. Kc2 {[%clk 0:00:12.3]} 44... Kg6
{[%clk 0:01:21]} 45. Kb3 {[%clk 0:00:13.5]} 45... Ra3+ {[%clk 0:01:20.6]} 46.
Kb2 {[%clk 0:00:12.9]} 46... Kf5 {[%clk 0:01:18.5]} 47. Rxa2 {[%clk 0:00:13.1]}
47... Rxa2+ {[%clk 0:01:19.9]} 48. Kxa2 {[%clk 0:00:15]} 48... Kg4 {[%clk
0:01:19.7]} 49. Bd2 {[%clk 0:00:14]} 49... Kf3 {[%clk 0:01:19.8]} 50. Kb3 {[%clk
0:00:13.9]} 50... h4 {[%clk 0:01:16.1]} 51. Kc4 {[%clk 0:00:13.2]} 51... h3
{[%clk 0:01:15.1]} 52. Be1 {[%clk 0:00:11.6]} 52... Bh6 {[%clk 0:01:14.7]} 53.
Bg3 {[%clk 0:00:11.5]} 53... Ke4 {[%clk 0:01:10.2]} 54. Bf2 {[%clk 0:00:07.1]}
54... Bf4 {[%clk 0:01:10.9]} 55. Bg1 {[%clk 0:00:07.9]} 55... Kf3 {[%clk
0:01:08.5]} 56. Kc5 {[%clk 0:00:05.2]} 56... Kg2 {[%clk 0:01:08.8]} 57. d5
{[%clk 0:00:05.5]} 57... exd5 {[%clk 0:01:04.5]} 58. e6 {[%clk 0:00:05.8]} 58...
fxe6 {[%clk 0:01:05.1]} 59. f7 {[%clk 0:00:06.9]} 59... Bh6 {[%clk 0:01:06.2]}
60. Be3 {[%clk 0:00:07.4]} 60... Bf8+ {[%clk 0:01:06.1]} 61. Kc6 {[%clk
0:00:08.5]} 61... Kxh2 {[%clk 0:01:06.8]} 62. Kd7 {[%clk 0:00:09.3]} 62... Kg3
{[%clk 0:01:07]} 63. Ke8 {[%clk 0:00:07.5]} 63... Ba3 {[%clk 0:01:05.9]} 64. Bc1
{[%clk 0:00:07.4]} 64... Bd6 {[%clk 0:01:03.5]} 65. Kd7 {[%clk 0:00:06.9]} 65...
Bf8 {[%clk 0:00:46.6]} 66. Ke8 {[%clk 0:00:07.2]} 66... h2 {[%clk 0:00:47.7]}
67. Kxf8 {[%clk 0:00:08.2]} 67... h1=Q {[%clk 0:00:49]} 68. Ba3 {[%clk 0:00:06]}
68... Qa1 {[%clk 0:00:43.7]} 69. Bd6+ {[%clk 0:00:06.8]} 69... Kg4 {[%clk
0:00:32.8]} 70. Ke7 {[%clk 0:00:08.7]} 70... Qg7 {[%clk 0:00:23]} 71. Kxe6
{[%clk 0:00:09.3]} 71... d4 {[%clk 0:00:23.5]} 72. f8=Q {[%clk 0:00:08.8]} 72...
Qxf8 {[%clk 0:00:24.1]} 73. Bxf8 {[%clk 0:00:10.7]} 73... d3 {[%clk 0:00:25.6]}
74. Bb4 {[%clk 0:00:11.5]} 74... Kf3 {[%clk 0:00:26.8]} 75. Kd5 {[%clk
0:00:11.8]} 75... Ke2 {[%clk 0:00:28.7]} 76. Kc4 {[%clk 0:00:12.7]} 76... d2
{[%clk 0:00:30.6]} 77. Bxd2 {[%clk 0:00:13.7]} 1/2-1/2

[Event "*** Titled Tuesday Blitz"]
[Site "Chess.com"]
[Date "2019.06.04"]
[Round "10"]
[White "kintoho"]
[Black "Babas"]
[Result "0-1"]
[WhiteElo "2529"]
[BlackElo "2408"]
[TimeControl "180+2"]
[EndTime "15:22:43 PDT"]
[Termination "Babas won by resignation"]

1. e4 {[%clk 0:03:01.9]} 1... e5 {[%clk 0:03:00.5]} 2. Nf3 {[%clk 0:03:02.5]}
2... Nf6 {[%clk 0:03:02]} 3. Nxe5 {[%clk 0:03:02.7]} 3... d6 {[%clk 0:03:03.3]}
4. Nf3 {[%clk 0:03:03.6]} 4... Nxe4 {[%clk 0:03:04.8]} 5. d3 {[%clk 0:03:05]}
5... Nf6 {[%clk 0:03:04.4]} 6. d4 {[%clk 0:03:06.3]} 6... Be7 {[%clk 0:03:06]}
7. c4 {[%clk 0:03:07.2]} 7... O-O {[%clk 0:03:07.6]} 8. Nc3 {[%clk 0:03:07.7]}
8... Re8 {[%clk 0:03:09.1]} 9. Bd3 {[%clk 0:03:06.7]} 9... c6 {[%clk 0:03:10.7]}
10. O-O {[%clk 0:03:06.9]} 10... Bg4 {[%clk 0:03:11.8]} 11. h3 {[%clk
0:03:07.4]} 11... Bh5 {[%clk 0:03:12.7]} 12. Be3 {[%clk 0:03:03.3]} 12... Nbd7
{[%clk 0:03:13.4]} 13. Re1 {[%clk 0:03:03.2]} 13... Bg6 {[%clk 0:03:12.2]} 14.
Bxg6 {[%clk 0:03:03.4]} 14... hxg6 {[%clk 0:03:14.1]} 15. Ng5 {[%clk 0:02:57.9]}
15... Nb6 {[%clk 0:03:09]} 16. b3 {[%clk 0:02:57.7]} 16... d5 {[%clk 0:03:09.4]}
17. c5 {[%clk 0:02:57.1]} 17... Nbd7 {[%clk 0:03:10.5]} 18. h4 {[%clk
0:02:51.1]} 18... Nf8 {[%clk 0:03:10.1]} 19. Qf3 {[%clk 0:02:50.5]} 19... Qd7
{[%clk 0:03:10.8]} 20. Bf4 {[%clk 0:02:44.4]} 20... Qg4 {[%clk 0:02:51]} 21.
Qxg4 {[%clk 0:02:44.7]} 21... Nxg4 {[%clk 0:02:52.9]} 22. Nf3 {[%clk 0:02:40.5]}
22... Bf6 {[%clk 0:02:49.8]} 23. b4 {[%clk 0:02:33.1]} 23... Ne6 {[%clk
0:02:45.8]} 24. Be3 {[%clk 0:02:33.5]} 24... Nxe3 {[%clk 0:02:29.3]} 25. fxe3
{[%clk 0:02:33.3]} 25... g5 {[%clk 0:02:30.6]} 26. g3 {[%clk 0:02:25.2]} 26...
g4 {[%clk 0:02:22.1]} 27. Ne5 {[%clk 0:02:05.4]} 27... Bxe5 {[%clk 0:02:18.7]}
28. dxe5 {[%clk 0:02:05.7]} 28... Nf8 {[%clk 0:02:17.4]} 29. e4 {[%clk
0:01:58.8]} 29... d4 {[%clk 0:02:00]} 30. Ne2 {[%clk 0:01:57.6]} 30... Rad8
{[%clk 0:02:00.7]} 31. Rad1 {[%clk 0:01:56.9]} 31... d3 {[%clk 0:01:58.4]} 32.
Nf4 {[%clk 0:01:55.1]} 32... d2 {[%clk 0:01:59.8]} 33. Re2 {[%clk 0:01:55.6]}
33... Rxe5 {[%clk 0:02:00.9]} 34. Rexd2 {[%clk 0:01:52.7]} 34... Rxd2 {[%clk
0:02:01.5]} 35. Rxd2 {[%clk 0:01:53.9]} 35... Rxe4 {[%clk 0:02:03]} 36. Rd8
{[%clk 0:01:50.3]} 36... Rxb4 {[%clk 0:02:00.6]} 37. Nd3 {[%clk 0:01:51.3]}
37... Rb1+ {[%clk 0:01:49.5]} 38. Kf2 {[%clk 0:01:50.4]} 38... f6 {[%clk
0:01:51]} 39. Ra8 {[%clk 0:01:43.1]} 39... a6 {[%clk 0:01:47.3]} 40. h5 {[%clk
0:01:40]} 40... Rh1 {[%clk 0:01:23.2]} 41. Nf4 {[%clk 0:01:39.9]} 41... Rh2+
{[%clk 0:01:23.9]} 42. Ke3 {[%clk 0:01:39.8]} 42... Kf7 {[%clk 0:01:22.2]} 43.
Rb8 {[%clk 0:01:38]} 43... Rb2 {[%clk 0:01:23.1]} 44. Rd8 {[%clk 0:01:29.7]}
44... Rxa2 {[%clk 0:01:16.5]} 45. Rc8 {[%clk 0:01:25]} 45... Ra3+ {[%clk
0:01:15]} 46. Ke4 {[%clk 0:01:24.7]} 46... Ne6 {[%clk 0:01:05]} 47. Nxe6 {[%clk
0:01:19.8]} 47... Kxe6 {[%clk 0:01:05.5]} 48. Rc7 {[%clk 0:01:18.4]} 48... Rxg3
{[%clk 0:00:59.5]} 49. Rxg7 {[%clk 0:01:15.6]} 49... f5+ {[%clk 0:01:00.4]} 50.
Kf4 {[%clk 0:01:15.2]} 50... Rh3 {[%clk 0:00:59.9]} 51. Rg6+ {[%clk 0:01:06.7]}
51... Kf7 {[%clk 0:00:50]} 52. Rg5 {[%clk 0:01:04.1]} 52... Rf3+ {[%clk
0:00:49]} 53. Ke5 {[%clk 0:01:04.5]} 53... g3 {[%clk 0:00:32.5]} 54. h6 {[%clk
0:01:05.2]} 54... f4 {[%clk 0:00:25.2]} 55. Rg7+ {[%clk 0:01:06.1]} 55... Kf8
{[%clk 0:00:25]} 56. Rg4 {[%clk 0:01:04.2]} 56... Rf2 {[%clk 0:00:22.3]} 57. h7
{[%clk 0:01:04.8]} 57... Rh2 {[%clk 0:00:18.1]} 58. Rxf4+ {[%clk 0:00:57.8]}
58... Ke7 {[%clk 0:00:16.9]} 59. Rg4 {[%clk 0:00:57.3]} 59... Rh5+ {[%clk
0:00:16.8]} 60. Kd4 {[%clk 0:00:57.4]} 60... Rxh7 {[%clk 0:00:18.1]} 61. Rxg3
{[%clk 0:00:58.7]} 61... Kd7 {[%clk 0:00:19.8]} 62. Rg4 {[%clk 0:00:57.2]} 62...
Kc7 {[%clk 0:00:21]} 63. Kc4 {[%clk 0:00:58.2]} 63... Rd7 {[%clk 0:00:22.1]} 64.
Rh4 {[%clk 0:00:58.7]} 64... Kb8 {[%clk 0:00:23.6]} 65. Rg4 {[%clk 0:00:58.5]}
65... Ka7 {[%clk 0:00:25.1]} 66. Kb4 {[%clk 0:00:58.5]} 66... Rd1 {[%clk
0:00:26.3]} 67. Rg5 {[%clk 0:00:57.3]} 67... Rb1+ {[%clk 0:00:27.6]} 68. Ka4
{[%clk 0:00:58.2]} 68... Rb5 {[%clk 0:00:28.8]} 69. Rh5 {[%clk 0:00:58.7]} 69...
a5 {[%clk 0:00:30]} 70. Rg5 {[%clk 0:00:58.8]} 70... Ka6 {[%clk 0:00:31.3]} 71.
Rg8 {[%clk 0:00:54.7]} 71... Rxc5 {[%clk 0:00:31.7]} 72. Ra8+ {[%clk 0:00:54.1]}
72... Kb6 {[%clk 0:00:33]} 73. Kb3 {[%clk 0:00:54.8]} 73... Rh5 {[%clk
0:00:33.2]} 74. Rf8 {[%clk 0:00:54.2]} 74... Kb5 {[%clk 0:00:33.4]} 75. Rf7
{[%clk 0:00:54.1]} 75... Rh3+ {[%clk 0:00:33.6]} 76. Kb2 {[%clk 0:00:55.3]}
76... b6 {[%clk 0:00:35.2]} 77. Rf5+ {[%clk 0:00:55.4]} 77... c5 {[%clk
0:00:36.6]} 78. Rf6 {[%clk 0:00:56.9]} 78... a4 {[%clk 0:00:37.9]} 79. Rg6
{[%clk 0:00:57.8]} 79... c4 {[%clk 0:00:38.5]} 80. Rf6 {[%clk 0:00:57.2]} 80...
Ka5 {[%clk 0:00:39.7]} 81. Rf8 {[%clk 0:00:57.8]} 81... b5 {[%clk 0:00:41.2]}
82. Ka1 {[%clk 0:00:57.8]} 82... Kb4 {[%clk 0:00:42.6]} 83. Rf2 {[%clk
0:00:58.4]} 83... a3 {[%clk 0:00:43.3]} 84. Rg2 {[%clk 0:00:58.5]} 84... Kb3
{[%clk 0:00:44.5]} 85. Rg1 {[%clk 0:00:59.4]} 85... b4 {[%clk 0:00:42.1]} 86.
Rb1+ {[%clk 0:00:59.4]} 86... Ka4 {[%clk 0:00:43.4]} 87. Rc1 {[%clk 0:01:00.3]}
87... c3 {[%clk 0:00:42.9]} 88. Rg1 {[%clk 0:01:00.9]} 88... Rh2 {[%clk
0:00:42.6]} 89. Kb1 {[%clk 0:01:00.2]} 89... Kb3 {[%clk 0:00:43]} 90. Ka1 {[%clk
0:01:01.1]} 90... Ra2+ {[%clk 0:00:44]} 91. Kb1 {[%clk 0:01:02.1]} 91... c2+
{[%clk 0:00:45.9]} 92. Kc1 {[%clk 0:01:03.6]} 92... Ra1+ {[%clk 0:00:47.8]} 93.
Kd2 {[%clk 0:01:05.1]} 93... Rxg1 {[%clk 0:00:49.3]} 0-1

[Event "*** Titled Tuesday Blitz"]
[Site "Chess.com"]
[Date "2019.06.04"]
[Round "10"]
[White "Durarbayli"]
[Black "Semen_Khanin"]
[Result "1/2-1/2"]
[WhiteElo "2765"]
[BlackElo "2726"]
[TimeControl "180+2"]
[EndTime "15:23:13 PDT"]
[Termination "Game drawn - insufficient material"]

1. e4 {[%clk 0:03:00.2]} 1... c5 {[%clk 0:02:58.4]} 2. Nc3 {[%clk 0:03:00.2]}
2... Nc6 {[%clk 0:02:58.6]} 3. Nf3 {[%clk 0:03:00.5]} 3... e6 {[%clk 0:02:58.7]}
4. d4 {[%clk 0:03:00.9]} 4... cxd4 {[%clk 0:03:00.3]} 5. Nxd4 {[%clk 0:03:02.8]}
5... Qc7 {[%clk 0:03:01.7]} 6. Be3 {[%clk 0:03:03.9]} 6... a6 {[%clk 0:03:03.2]}
7. Qf3 {[%clk 0:03:05.4]} 7... Nf6 {[%clk 0:03:04.5]} 8. O-O-O {[%clk
0:03:05.1]} 8... h5 {[%clk 0:03:03.9]} 9. Qg3 {[%clk 0:03:04.1]} 9... Qxg3
{[%clk 0:03:02.7]} 10. hxg3 {[%clk 0:02:48.4]} 10... Ng4 {[%clk 0:03:03.8]} 11.
Be2 {[%clk 0:02:49.1]} 11... Nxe3 {[%clk 0:03:03.1]} 12. fxe3 {[%clk 0:02:51]}
12... g6 {[%clk 0:03:03.9]} 13. Nxc6 {[%clk 0:02:44.8]} 13... dxc6 {[%clk
0:03:02.7]} 14. g4 {[%clk 0:02:46]} 14... Bh6 {[%clk 0:02:59]} 15. gxh5 {[%clk
0:02:40.6]} 15... Bxe3+ {[%clk 0:02:59.5]} 16. Kb1 {[%clk 0:02:41.2]} 16... gxh5
{[%clk 0:02:56.5]} 17. Bxh5 {[%clk 0:02:39.4]} 17... Ke7 {[%clk 0:02:56.1]} 18.
e5 {[%clk 0:02:36.6]} 18... Bf4 {[%clk 0:02:43.9]} 19. Rdf1 {[%clk 0:02:36.5]}
19... Bxe5 {[%clk 0:02:21.3]} 20. Rxf7+ {[%clk 0:02:35.1]} 20... Kd6 {[%clk
0:02:22.7]} 21. Rd1+ {[%clk 0:01:06.2]} 21... Kc5 {[%clk 0:02:22.9]} 22. Ne4+
{[%clk 0:01:06.7]} 22... Kb6 {[%clk 0:02:23.2]} 23. Bf3 {[%clk 0:01:03.9]} 23...
a5 {[%clk 0:02:13.5]} 24. a4 {[%clk 0:01:03.4]} 24... Ka7 {[%clk 0:02:05.5]} 25.
Nc5 {[%clk 0:01:01.6]} 25... Kb8 {[%clk 0:02:03]} 26. Rdd7 {[%clk 0:00:45.1]}
26... Ra7 {[%clk 0:01:54.8]} 27. Bxc6 {[%clk 0:00:30.7]} 27... Bxd7 {[%clk
0:01:53.3]} 28. Nxd7+ {[%clk 0:00:32.6]} 28... Kc7 {[%clk 0:01:51.4]} 29. Nxe5+
{[%clk 0:00:33.3]} 29... Kd6 {[%clk 0:01:52.9]} 30. Ng6 {[%clk 0:00:08.5]} 30...
Rh1+ {[%clk 0:01:49.4]} 31. Ka2 {[%clk 0:00:09.8]} 31... Kxc6 {[%clk 0:01:50.8]}
32. g4 {[%clk 0:00:10.7]} 32... Ra8 {[%clk 0:01:45]} 33. g5 {[%clk 0:00:10.9]}
33... Rg1 {[%clk 0:01:44.4]} 34. Ne7+ {[%clk 0:00:12.1]} 34... Kd6 {[%clk
0:01:42.1]} 35. Rg7 {[%clk 0:00:07.2]} 35... Re8 {[%clk 0:01:39.9]} 36. Ng8
{[%clk 0:00:08.2]} 36... Rc8 {[%clk 0:01:33.3]} 37. c3 {[%clk 0:00:09.1]} 37...
Rc4 {[%clk 0:01:34.5]} 38. Kb3 {[%clk 0:00:07.4]} 38... Rcg4 {[%clk 0:01:35.5]}
39. Nf6 {[%clk 0:00:08.9]} 39... R4g2 {[%clk 0:01:34.4]} 40. Rxb7 {[%clk
0:00:10.1]} 40... Rb1 {[%clk 0:00:58.5]} 41. Ka2 {[%clk 0:00:10.7]} 41... Re1
{[%clk 0:00:57.1]} 42. Rb5 {[%clk 0:00:09.6]} 42... Ree2 {[%clk 0:00:53.7]} 43.
Ka3 {[%clk 0:00:10.6]} 43... e5 {[%clk 0:00:53.1]} 44. b4 {[%clk 0:00:11.1]}
44... axb4+ {[%clk 0:00:46.3]} 45. Kxb4 {[%clk 0:00:13]} 45... Rxg5 {[%clk
0:00:45.5]} 46. c4 {[%clk 0:00:11.6]} 46... Rg1 {[%clk 0:00:21.9]} 47. Rb6+
{[%clk 0:00:11.1]} 47... Kc7 {[%clk 0:00:21.4]} 48. Nd5+ {[%clk 0:00:12.4]}
48... Kd7 {[%clk 0:00:23]} 49. Kc5 {[%clk 0:00:13.2]} 49... Ke8 {[%clk 0:00:22]}
50. a5 {[%clk 0:00:13.1]} 50... Ra1 {[%clk 0:00:22.3]} 51. a6 {[%clk 0:00:14.3]}
51... Rea2 {[%clk 0:00:23.1]} 52. Rb8+ {[%clk 0:00:10.2]} 52... Kf7 {[%clk
0:00:24.3]} 53. Rb7+ {[%clk 0:00:12.1]} 53... Kg6 {[%clk 0:00:25]} 54. Nb4
{[%clk 0:00:12.9]} 54... Ra5+ {[%clk 0:00:25.4]} 55. Kd6 {[%clk 0:00:13.7]}
55... e4 {[%clk 0:00:26.5]} 56. c5 {[%clk 0:00:15.1]} 56... e3 {[%clk
0:00:27.6]} 57. Re7 {[%clk 0:00:16.1]} 57... R1a4 {[%clk 0:00:24.2]} 58. Re6+
{[%clk 0:00:16.5]} 58... Kg5 {[%clk 0:00:24.7]} 59. Re5+ {[%clk 0:00:17.3]}
59... Kg4 {[%clk 0:00:23.7]} 60. Nd5 {[%clk 0:00:16]} 60... Rxa6+ {[%clk
0:00:24.4]} 61. c6 {[%clk 0:00:17.6]} 61... Ra3 {[%clk 0:00:16.9]} 62. Nxe3+
{[%clk 0:00:17.9]} 62... Kf4 {[%clk 0:00:16.7]} 63. Nd5+ {[%clk 0:00:19.8]}
63... Kg4 {[%clk 0:00:16.9]} 64. Re4+ {[%clk 0:00:19.5]} 64... Kf5 {[%clk
0:00:15.9]} 65. Rf4+ {[%clk 0:00:17.8]} 65... Kg5 {[%clk 0:00:16.6]} 66. Rc4
{[%clk 0:00:18.6]} 66... Rd3 {[%clk 0:00:16.6]} 67. Ke5 {[%clk 0:00:18.7]} 67...
Ra5 {[%clk 0:00:15.4]} 68. Rd4 {[%clk 0:00:17.5]} 68... Rxd4 {[%clk 0:00:13]}
69. Kxd4 {[%clk 0:00:19.4]} 69... Ra6 {[%clk 0:00:14.5]} 70. c7 {[%clk 0:00:21]}
70... Rc6 {[%clk 0:00:16.1]} 71. Ke5 {[%clk 0:00:21.6]} 71... Kg4 {[%clk
0:00:15.9]} 72. Ke4 {[%clk 0:00:22.7]} 72... Kg3 {[%clk 0:00:15.1]} 73. Ke3
{[%clk 0:00:23.5]} 73... Kg2 {[%clk 0:00:15.2]} 74. Ke2 {[%clk 0:00:24.1]} 74...
Kg1 {[%clk 0:00:16]} 75. Ke1 {[%clk 0:00:23.4]} 75... Rc5 {[%clk 0:00:17]} 76.
Ke2 {[%clk 0:00:24.3]} 76... Kh2 {[%clk 0:00:18.4]} 77. Kf2 {[%clk 0:00:24.8]}
77... Kh3 {[%clk 0:00:18.9]} 78. Kf3 {[%clk 0:00:26.1]} 78... Kh4 {[%clk
0:00:19.9]} 79. Kf4 {[%clk 0:00:27.4]} 79... Kh5 {[%clk 0:00:20.2]} 80. Ke5
{[%clk 0:00:28.7]} 80... Rc6 {[%clk 0:00:18.8]} 81. Nf4+ {[%clk 0:00:29.4]}
81... Kg4 {[%clk 0:00:16.7]} 82. Ne6 {[%clk 0:00:30.4]} 82... Rxc7 {[%clk
0:00:17]} 83. Nxc7 {[%clk 0:00:31.8]} 1/2-1/2

[Event "*** Titled Tuesday Blitz"]
[Site "Chess.com"]
[Date "2019.06.04"]
[Round "10"]
[White "Filip_Covic"]
[Black "jk13"]
[Result "0-1"]
[WhiteElo "2374"]
[BlackElo "2545"]
[TimeControl "180+2"]
[EndTime "15:23:16 PDT"]
[Termination "jk13 won by resignation"]

1. d4 {[%clk 0:03:01.9]} 1... Nf6 {[%clk 0:03:01]} 2. Nf3 {[%clk 0:03:02.6]}
2... e6 {[%clk 0:03:02.4]} 3. Bf4 {[%clk 0:03:03.9]} 3... d5 {[%clk 0:03:03.5]}
4. e3 {[%clk 0:03:05]} 4... Bd6 {[%clk 0:03:05.4]} 5. Bg3 {[%clk 0:03:05.4]}
5... O-O {[%clk 0:03:07]} 6. Bd3 {[%clk 0:03:06.2]} 6... b6 {[%clk 0:03:08.5]}
7. c3 {[%clk 0:03:06.1]} 7... Ba6 {[%clk 0:03:09.5]} 8. Bxa6 {[%clk 0:03:04.1]}
8... Nxa6 {[%clk 0:03:11.4]} 9. O-O {[%clk 0:03:03.6]} 9... c5 {[%clk
0:03:11.7]} 10. Ne5 {[%clk 0:03:04.9]} 10... Nb8 {[%clk 0:03:10.1]} 11. f4
{[%clk 0:03:02.5]} 11... Ne4 {[%clk 0:03:07.9]} 12. Be1 {[%clk 0:02:52.6]} 12...
f6 {[%clk 0:02:56.6]} 13. Nd3 {[%clk 0:02:53.5]} 13... Nc6 {[%clk 0:02:56.9]}
14. Nd2 {[%clk 0:02:50.5]} 14... Nxd2 {[%clk 0:02:52.7]} 15. Bxd2 {[%clk
0:02:48.9]} 15... f5 {[%clk 0:02:46.6]} 16. b4 {[%clk 0:02:44.5]} 16... c4
{[%clk 0:02:38.5]} 17. Ne5 {[%clk 0:02:42.9]} 17... Bxe5 {[%clk 0:02:33.4]} 18.
fxe5 {[%clk 0:02:44.3]} 18... g5 {[%clk 0:02:23]} 19. Qh5 {[%clk 0:02:43]} 19...
Qe7 {[%clk 0:02:17.3]} 20. e4 {[%clk 0:02:40.7]} 20... f4 {[%clk 0:02:09.1]} 21.
exd5 {[%clk 0:02:39.8]} 21... exd5 {[%clk 0:02:11]} 22. h4 {[%clk 0:02:35.9]}
22... Rf5 {[%clk 0:01:52.5]} 23. g4 {[%clk 0:02:30.1]} 23... Rf7 {[%clk
0:01:43.2]} 24. Qxg5+ {[%clk 0:02:23.7]} 24... Qxg5 {[%clk 0:01:44.3]} 25. hxg5
{[%clk 0:02:25.6]} 25... Raf8 {[%clk 0:01:43.7]} 26. Rf3 {[%clk 0:02:24.6]}
26... Nd8 {[%clk 0:01:44.7]} 27. Raf1 {[%clk 0:02:20.1]} 27... Ne6 {[%clk
0:01:45.8]} 28. Kg2 {[%clk 0:02:20.8]} 28... Kg7 {[%clk 0:01:46.1]} 29. a4
{[%clk 0:02:18.6]} 29... Kg6 {[%clk 0:01:37.3]} 30. Bc1 {[%clk 0:02:14.2]} 30...
Kxg5 {[%clk 0:01:37]} 31. Rh1 {[%clk 0:02:01.6]} 31... Kxg4 {[%clk 0:01:26.9]}
32. Rfh3 {[%clk 0:02:02.6]} 32... Ng5 {[%clk 0:01:19.8]} 33. Rh4+ {[%clk
0:02:02.7]} 33... Kf5 {[%clk 0:01:18.5]} 34. Rxf4+ {[%clk 0:02:03.9]} 34... Kg6
{[%clk 0:01:10]} 35. Rxf7 {[%clk 0:01:53.8]} 35... Nxf7 {[%clk 0:01:02.8]} 36.
Rf1 {[%clk 0:01:47]} 36... Re8 {[%clk 0:00:55]} 37. Rf6+ {[%clk 0:01:44.8]}
37... Kg7 {[%clk 0:00:56.2]} 38. Kf3 {[%clk 0:01:45]} 38... Nd8 {[%clk
0:00:28.2]} 39. Bh6+ {[%clk 0:01:42.4]} 39... Kg8 {[%clk 0:00:29]} 40. e6 {[%clk
0:01:42.7]} 40... Nxe6 {[%clk 0:00:26.8]} 41. Kg4 {[%clk 0:01:40.6]} 41... Ng7
{[%clk 0:00:11.8]} 42. Rc6 {[%clk 0:01:31]} 42... Re4+ {[%clk 0:00:10.7]} 43.
Kg5 {[%clk 0:01:20.8]} 43... Re7 {[%clk 0:00:11.2]} 44. Rd6 {[%clk 0:01:09.2]}
44... Ne8 {[%clk 0:00:10.4]} 45. Rxd5 {[%clk 0:01:08]} 45... Nc7 {[%clk
0:00:10.3]} 46. Rd8+ {[%clk 0:01:05.5]} 46... Kf7 {[%clk 0:00:11.3]} 47. d5
{[%clk 0:01:02.5]} 47... Re5+ {[%clk 0:00:10.8]} 48. Kf4 {[%clk 0:01:02.6]}
48... Rxd5 {[%clk 0:00:12.1]} 49. Rc8 {[%clk 0:01:00]} 49... Ne6+ {[%clk
0:00:12.8]} 50. Ke4 {[%clk 0:01:00.7]} 50... Rd7 {[%clk 0:00:13.7]} 51. Be3
{[%clk 0:00:55.4]} 51... Rc7 {[%clk 0:00:13.4]} 52. Rh8 {[%clk 0:00:54]} 52...
Kg6 {[%clk 0:00:14.7]} 53. Re8 {[%clk 0:00:52.5]} 53... Kf7 {[%clk 0:00:15.3]}
54. Rh8 {[%clk 0:00:47.8]} 54... Kg6 {[%clk 0:00:16.5]} 55. Kd5 {[%clk 0:00:45]}
55... Ng7 {[%clk 0:00:16.1]} 56. Kd6 {[%clk 0:00:42.9]} 56... Rf7 {[%clk
0:00:17.2]} 57. Kd5 {[%clk 0:00:35.2]} 57... Nf5 {[%clk 0:00:18.1]} 58. Rg8+
{[%clk 0:00:22.2]} 58... Rg7 {[%clk 0:00:17.2]} 59. Rxg7+ {[%clk 0:00:22.3]}
59... Kxg7 {[%clk 0:00:18.3]} 60. Bf4 {[%clk 0:00:19.2]} 60... Kf6 {[%clk
0:00:18]} 61. Kxc4 {[%clk 0:00:19.7]} 61... Ke6 {[%clk 0:00:19.7]} 62. Kb5
{[%clk 0:00:18.9]} 62... Kd7 {[%clk 0:00:19.8]} 63. Ka6 {[%clk 0:00:19]} 63...
Kc6 {[%clk 0:00:20.9]} 64. Kxa7 {[%clk 0:00:19.2]} 64... h5 {[%clk 0:00:22.8]}
65. c4 {[%clk 0:00:16.5]} 65... h4 {[%clk 0:00:23.6]} 66. a5 {[%clk 0:00:12.3]}
66... bxa5 {[%clk 0:00:24.6]} 67. bxa5 {[%clk 0:00:13.2]} 67... h3 {[%clk
0:00:24.8]} 68. Kb8 {[%clk 0:00:12.9]} 68... Nd4 {[%clk 0:00:18.8]} 69. a6
{[%clk 0:00:13.9]} 69... Kb6 {[%clk 0:00:20.2]} 70. a7 {[%clk 0:00:03.8]} 70...
Nc6+ {[%clk 0:00:21.1]} 71. Ka8 {[%clk 0:00:05.3]} 71... Nxa7 {[%clk 0:00:22.2]}
72. c5+ {[%clk 0:00:06.8]} 72... Ka6 {[%clk 0:00:22.8]} 73. Bb8 {[%clk
0:00:07.4]} 73... Nc6 {[%clk 0:00:23.9]} 74. Bh2 {[%clk 0:00:08.5]} 74... Kb5
{[%clk 0:00:25.8]} 75. Kb7 {[%clk 0:00:07.4]} 75... Kxc5 {[%clk 0:00:26.7]} 76.
Kc7 {[%clk 0:00:08.6]} 76... Kd5 {[%clk 0:00:28.2]} 77. Kd7 {[%clk 0:00:09.5]}
77... Ne5+ {[%clk 0:00:29.3]} 78. Ke7 {[%clk 0:00:10.1]} 78... Ng4 {[%clk
0:00:30.7]} 79. Bg3 {[%clk 0:00:10.5]} 79... Ke4 {[%clk 0:00:32]} 80. Ke6 {[%clk
0:00:11.1]} 80... Kf3 {[%clk 0:00:32.8]} 81. Bd6 {[%clk 0:00:11.5]} 81... Ne3
{[%clk 0:00:32.3]} 82. Kf6 {[%clk 0:00:07.3]} 82... Nf1 {[%clk 0:00:31.2]} 83.
Kg5 {[%clk 0:00:04.8]} 83... Ng3 {[%clk 0:00:31.8]} 0-1